bitfinex-derivatives/quotes_BTCF0:USTF0_20250718
["timestamp","ask_amount","ask_price","bid_price","bid_amount"]
[1752837313044,1.3614165,119090.0,119080.0,1e-07]
[1752837313348,1.55183902,119090.0,119080.0,1e-07]
[1752837316449,1.4914165,119090.0,119080.0,1e-07]
[1752837320047,0.9085765,119090.0,119080.0,1e-07]
[1752837320254,1.4914165,119090.0,119080.0,1e-07]
[1752837321651,1.3614165,119090.0,119080.0,1e-07]
[1752837322057,0.7785765,119090.0,119080.0,1e-07]
[1752837322254,1.3614165,119090.0,119080.0,1e-07]
[1752837323856,1.42183902,119090.0,119080.0,1e-07]
[1752837324958,1.3614165,119090.0,119080.0,1e-07]
[1752837328469,1.42183902,119090.0,119080.0,1e-07]
[1752837329559,1.42183902,119090.0,119080.0,0.0310601]
[1752837329765,0.39138422,119090.0,119080.0,0.46141401]
[1752837329958,1.40273813,119090.0,119080.0,0.48403401]
[1752837330358,1.34231561,119090.0,119080.0,0.46141401]
[1752837331068,0.9137617,119090.0,119080.0,0.46141401]
[1752837331264,1.34231561,119090.0,119080.0,0.46141401]
[1752837331567,0.75951561,119090.0,119080.0,0.46141401]
[1752837332463,0.32266168,119090.0,119080.0,0.62927691]
[1752837332669,0.32266168,119090.0,119080.0,0.69274197]
[1752837332868,0.75121559,119090.0,119080.0,0.69274197]
[1752837333169,0.75121559,119090.0,119080.0,0.70113069]
[1752837333570,0.75121559,119090.0,119080.0,0.69274197]
[1752837333770,0.75121559,119090.0,119080.0,0.26418806]
[1752837334070,0.32266168,119090.0,119080.0,0.69274197]
[1752837334271,0.75121559,119090.0,119080.0,0.69274197]
[1752837334770,0.75121559,119090.0,119080.0,0.26418806]
[1752837334967,0.75121559,119090.0,119080.0,0.69274197]
[1752837335670,0.75121559,119090.0,119080.0,0.26418806]
[1752837335870,0.75121559,119090.0,119080.0,0.69274197]
[1752837336369,0.75121559,119090.0,119080.0,0.70128495]
[1752837336769,0.256639,119090.0,119080.0,0.70128495]
[1752837336972,0.222139,119090.0,119080.0,0.70241495]
[1752837337171,0.222139,119090.0,119080.0,0.72500432]
[1752837338067,0.222139,119090.0,119080.0,1.30776432]
[1752837341072,0.222139,119090.0,119080.0,0.87921041]
[1752837341270,0.222139,119090.0,119080.0,1.30776432]
[1752837342379,0.167849,119090.0,119080.0,1.37465218]
[1752837342573,0.167849,119090.0,119080.0,1.57247973]
[1752837344979,0.167849,119090.0,119080.0,1.57258241]
[1752837348782,0.3464679,119100.0,119090.0,0.2408788]
[1752837348981,0.3464679,119100.0,119090.0,0.7107782]
[1752837350580,0.2625451,119100.0,119090.0,0.7107782]
[1752837350777,0.2400151,119100.0,119090.0,0.7107782]
[1752837352785,0.1980448,119100.0,119090.0,0.73336757]
[1752837353787,0.2219248,119100.0,119090.0,0.73336757]
[1752837356295,0.2219248,119100.0,119090.0,0.30481366]
[1752837356494,0.2219248,119100.0,119090.0,1.31596757]
[1752837358093,0.2219248,119100.0,119090.0,0.88741366]
[1752837358392,0.2219248,119100.0,119090.0,1.31596757]
[1752837359493,0.2219248,119100.0,119090.0,0.88741366]
[1752837359693,0.2219248,119100.0,119090.0,1.31596757]
[1752837360095,0.2374948,119100.0,119090.0,1.31596757]
[1752837360394,0.2568548,119100.0,119090.0,1.31596757]
[1752837360589,0.2568548,119100.0,119090.0,1.31620757]
[1752837360893,0.2568548,119100.0,119090.0,1.32350175]
[1752837361095,0.2405648,119100.0,119090.0,1.32350175]
[1752837362095,0.2249948,119100.0,119090.0,1.32350175]
[1752837362990,0.2405648,119100.0,119090.0,0.89494784]
[1752837363191,0.2405648,119100.0,119090.0,1.32350175]
[1752837363388,0.2405648,119100.0,119090.0,0.89494784]
[1752837363687,0.2568548,119100.0,119090.0,1.32350175]
[1752837365994,0.2405648,119100.0,119090.0,1.32350175]
[1752837369398,0.2405648,119100.0,119090.0,1.32430175]
[1752837370395,0.2405648,119100.0,119090.0,0.89574784]
[1752837370597,0.2405648,119100.0,119090.0,1.32430175]
[1752837371997,0.2249948,119100.0,119090.0,1.32430175]
[1752837372193,0.2219248,119100.0,119090.0,1.36912708]
[1752837373993,0.2219248,119100.0,119090.0,1.31701384]
[1752837374797,0.2374948,119100.0,119090.0,1.31701384]
[1752837374998,0.2405648,119100.0,119090.0,1.31701384]
[1752837375191,0.2568548,119100.0,119090.0,1.31701384]
[1752837378000,0.2568548,119100.0,119090.0,0.88845993]
[1752837378195,0.2568548,119100.0,119090.0,1.31701384]
[1752837378392,0.2568548,119100.0,119090.0,1.34689739]
[1752837382401,0.2568548,119100.0,119090.0,0.91834348]
[1752837382601,0.2568548,119100.0,119090.0,1.34689739]
[1752837383906,0.2568548,119100.0,119090.0,1.36912708]
[1752837384706,0.2219248,119100.0,119090.0,1.36912708]
[1752837386109,0.1678348,119100.0,119090.0,1.36912708]
[1752837386605,0.2226248,119100.0,119090.0,1.33924353]
[1752837387802,0.2226248,119100.0,119090.0,1.76779744]
[1752837388207,0.3584831,119110.0,119100.0,0.2007346]
[1752837388407,0.3837131,119110.0,119100.0,1.17601792]
[1752837389609,0.3857131,119110.0,119100.0,1.17601792]
[1752837390712,0.3857131,119110.0,119100.0,0.3189101]
[1752837391003,0.2852078,119110.0,119100.0,1.17601792]
[1752837391204,0.2004306,119110.0,119100.0,1.15341059]
[1752837391611,0.2246106,119110.0,119100.0,1.15341059]
[1752837393909,0.2246106,119110.0,119100.0,1.17600601]
[1752837395811,0.2246106,119110.0,119100.0,1.15341059]
[1752837399917,0.2598306,119110.0,119100.0,1.15341059]
[1752837400118,0.2598306,119110.0,119100.0,1.73649059]
[1752837401113,0.2598306,119110.0,119100.0,1.7590562]
[1752837401723,0.2598306,119110.0,119100.0,1.71319553]
[1752837401925,0.2598306,119110.0,119100.0,1.75934373]
[1752837402617,0.2598306,119110.0,119100.0,0.90223591]
[1752837402916,0.2598306,119110.0,119100.0,1.75934373]
[1752837406025,0.2598306,119110.0,119100.0,1.73677891]
[1752837406417,0.2598306,119110.0,119100.0,1.75934191]
[1752837407026,0.2598306,119110.0,119100.0,1.73677891]
[1752837407731,0.2598306,119110.0,119100.0,1.75934208]
[1752837413835,0.2598306,119110.0,119100.0,1.72919897]
[1752837415439,0.2598306,119110.0,119100.0,1.14611897]
[1752837415639,0.2598306,119110.0,119100.0,1.72875897]
[1752837419341,0.2598306,119110.0,119100.0,1.88721959]
[1752837419842,0.1698206,119110.0,119100.0,1.88721959]
[1752837420243,0.1698206,119110.0,119100.0,1.03011177]
[1752837420447,0.1998306,119110.0,119100.0,1.88721959]
[1752837421139,0.2243006,119110.0,119100.0,1.86465642]
[1752837421340,0.2243006,119110.0,119100.0,1.88724739]
[1752837421541,0.2399906,119110.0,119100.0,1.88724739]
[1752837421845,0.2428706,119110.0,119100.0,1.88724739]
[1752837422143,0.2428706,119110.0,119100.0,1.86465642]
[1752837423749,0.2584006,119110.0,119100.0,1.86465642]
[1752837423950,0.2584006,119110.0,119100.0,1.83451331]
[1752837425246,0.2584006,119110.0,119100.0,1.87933864]
[1752837426844,0.2428706,119110.0,119100.0,1.87933864]
[1752837427445,0.2428706,119110.0,119100.0,1.29669864]
[1752837427650,0.2584006,119110.0,119100.0,1.87933864]
[1752837431951,0.2428706,119110.0,119100.0,1.87933864]
[1752837432151,0.2243006,119110.0,119100.0,1.87933864]
[1752837436255,0.2584006,119110.0,119100.0,1.87933864]
[1752837439258,0.2584006,119110.0,119100.0,1.02223082]
[1752837439458,0.2584006,119110.0,119100.0,1.87933864]
[1752837443360,0.2428706,119110.0,119100.0,1.87933864]
[1752837443659,0.2243006,119110.0,119100.0,1.87933864]
[1752837445255,0.2401106,119110.0,119100.0,1.87933864]
[1752837445657,0.2429706,119110.0,119100.0,1.87933864]
[1752837446364,0.2591006,119110.0,119100.0,1.29597864]
[1752837446560,0.2591006,119110.0,119100.0,0.86742473]
[1752837446760,0.68765451,119110.0,119100.0,0.02358338]
[1752837446961,0.68765451,119110.0,119100.0,0.05371449]
[1752837447465,0.85557451,119110.0,119100.0,0.07631445]
[1752837447666,1.10557451,119110.0,119100.0,0.62870334]
[1752837447869,1.12431264,119110.0,119100.0,0.62870334]
[1752837448258,1.12431264,119110.0,119100.0,0.04618334]
[1752837448465,1.12431264,119110.0,119100.0,0.62870334]
[1752837449058,0.69575873,119110.0,119100.0,0.62870334]
[1752837449264,0.87431264,119110.0,119100.0,0.62870334]
[1752837450369,0.44575873,119110.0,119100.0,0.04618334]
[1752837450577,0.87431264,119110.0,119100.0,0.62874334]
[1752837450966,0.44575873,119110.0,119100.0,0.79657804]
[1752837451265,0.87431264,119110.0,119100.0,0.79657804]
[1752837451969,0.87431264,119110.0,119100.0,0.62874334]
[1752837454470,0.87431264,119110.0,119100.0,0.04618334]
[1752837454770,0.87431264,119110.0,119100.0,0.62874334]
[1752837455375,0.87431264,119110.0,119100.0,0.60614338]
[1752837455763,0.70639264,119110.0,119100.0,0.60614338]
[1752837456362,0.70639264,119110.0,119100.0,0.58256]
[1752837458274,0.2026348,119100.0,119090.0,0.64503154]
[1752837458473,0.68592871,119100.0,119090.0,1.08314691]
[1752837459468,0.69435011,119100.0,119090.0,1.08314691]
[1752837459675,0.2657962,119100.0,119090.0,1.25099571]
[1752837459877,0.69435011,119100.0,119090.0,1.25099571]
[1752837463274,0.68592871,119100.0,119090.0,1.25099571]
[1752837463775,0.6942202,119100.0,119090.0,1.25099571]
[1752837464075,0.6942202,119100.0,119090.0,1.22760314]
[1752837464675,0.2573748,119100.0,119090.0,1.22760314]
[1752837464870,0.68592871,119100.0,119090.0,1.25189314]
[1752837465070,0.68592871,119100.0,119090.0,1.26944314]
[1752837468082,0.69431408,119100.0,119090.0,1.26944314]
[1752837468584,0.69431408,119100.0,119090.0,1.25189324]
[1752837469478,0.69431408,119100.0,119090.0,0.21688933]
[1752837469679,0.69431408,119100.0,119090.0,1.06011434]
[1752837469989,0.26576017,119100.0,119090.0,0.63166915]
[1752837470180,1.12286799,119100.0,119090.0,0.63166915]
[1752837471184,0.69431408,119100.0,119090.0,0.63166915]
[1752837471785,0.69431408,119100.0,119090.0,0.79951805]
[1752837472190,0.69431408,119100.0,119090.0,0.63166915]
[1752837472686,0.69431408,119100.0,119090.0,0.03298915]
[1752837472886,1.12286799,119100.0,119090.0,0.01702915]
[1752837473092,0.257853,119080.0,119070.0,0.05733]
[1752837473287,0.68640691,119080.0,119070.0,0.045973]
[1752837473492,0.68640691,119080.0,119070.0,0.60589396]
[1752837473986,0.68640691,119080.0,119070.0,0.77377106]
[1752837474191,0.68640691,119080.0,119070.0,0.664363]
[1752837474386,0.68640691,119080.0,119070.0,0.83624]
[1752837474788,0.68640691,119080.0,119070.0,0.64580396]
[1752837475282,0.257853,119080.0,119070.0,0.64580396]
[1752837475483,0.68640691,119080.0,119070.0,0.81368096]
[1752837475688,0.68640691,119080.0,119070.0,0.64580396]
[1752837476188,0.68640691,119080.0,119070.0,0.64582226]
[1752837479095,0.68640691,119080.0,119070.0,0.81369926]
[1752837479496,0.68640691,119080.0,119070.0,1.24238317]
[1752837479789,0.68640691,119080.0,119070.0,0.64595226]
[1752837479993,0.68640691,119080.0,119070.0,1.07450617]
[1752837480996,0.68640691,119080.0,119070.0,0.790397]
[1752837481191,0.68640691,119080.0,119070.0,1.21895091]
[1752837481588,0.68640691,119080.0,119070.0,0.62252]
[1752837481794,0.68640691,119080.0,119070.0,1.05107391]
[1752837483300,0.68640691,119080.0,119070.0,1.07500401]
[1752837483998,0.68640691,119080.0,119070.0,1.24288101]
[1752837484200,0.68640691,119080.0,119070.0,1.07500401]
[1752837484800,0.68640691,119080.0,119070.0,0.6464501]
[1752837485001,0.68640691,119080.0,119070.0,1.07500401]
[1752837487305,0.257853,119080.0,119070.0,1.24288101]
[1752837487505,0.68640691,119080.0,119070.0,1.07500401]
[1752837487802,0.68640691,119080.0,119070.0,1.07501451]
[1752837489701,0.68640691,119080.0,119070.0,0.6464606]
[1752837491301,0.68640691,119080.0,119070.0,0.66905173]
[1752837492397,0.68640691,119080.0,119070.0,1.09760564]
[1752837493002,0.68640691,119080.0,119070.0,0.66905173]
[1752837494004,0.68640691,119080.0,119070.0,0.6464606]
[1752837495397,0.68640691,119080.0,119070.0,0.66905173]
[1752837495805,0.68640691,119080.0,119070.0,0.6464606]
[1752837497708,0.68640691,119080.0,119070.0,0.6463306]
[1752837498009,0.68640691,119080.0,119070.0,0.6298206]
[1752837498709,0.68640691,119080.0,119070.0,0.62993095]
[1752837499206,0.68640691,119080.0,119070.0,0.61337095]
[1752837501311,0.257853,119080.0,119070.0,0.61337095]
[1752837501511,0.68640691,119080.0,119070.0,0.61337095]
[1752837501911,1.11496082,119080.0,119070.0,0.00466085]
[1752837502211,1.11496082,119080.0,119070.0,0.00011035]
[1752837503012,1.11496082,119080.0,119070.0,0.00111035]
[1752837503313,1.11496082,119080.0,119070.0,0.00211035]
[1752837507517,0.68640691,119080.0,119070.0,0.00211035]
[1752837508714,0.257853,119080.0,119070.0,0.00211035]
[1752837509009,0.840133,119080.0,119070.0,0.00211035]
[1752837509316,1.26868691,119080.0,119070.0,0.00211035]
[1752837510508,0.840133,119080.0,119070.0,0.00211035]
[1752837510717,1.26868691,119080.0,119070.0,0.00211035]
[1752837514019,1.32898988,119080.0,119070.0,0.00211035]
[1752837514407,0.90043597,119080.0,119070.0,0.00211035]
[1752837514613,1.32898988,119080.0,119070.0,0.00211035]
[1752837516218,1.26868691,119080.0,119070.0,0.00211035]
[1752837517319,1.32898988,119080.0,119070.0,0.00211035]
[1752837517518,1.26868691,119080.0,119070.0,0.00211035]
[1752837519821,1.69724082,119080.0,119070.0,0.00211035]
[1752837520119,1.69724082,119080.0,119070.0,5e-08]
[1752837520421,1.7645179,119080.0,119070.0,5e-08]
[1752837521324,1.82482087,119080.0,119070.0,5e-08]
[1752837522517,0.96771305,119080.0,119070.0,5e-08]
[1752837522716,1.82482087,119080.0,119070.0,5e-08]
[1752837524116,1.7645179,119080.0,119070.0,5e-08]
[1752837525324,1.82482087,119080.0,119070.0,5e-08]
[1752837527718,0.1831708,119060.0,119050.0,0.01648002]
[1752837527926,0.68335471,119060.0,119050.0,0.02372705]
[1752837528224,1.26563471,119060.0,119050.0,0.02372703]
[1752837528928,0.8370808,119060.0,119050.0,0.02372703]
[1752837529229,0.1679049,119050.0,119040.0,0.03958964]
[1752837529425,0.62991881,119050.0,119040.0,0.09635101]
[1752837529625,0.68336881,119050.0,119040.0,0.11390101]
[1752837530527,0.68336881,119050.0,119040.0,0.11890101]
[1752837531125,0.69176246,119050.0,119040.0,0.11890101]
[1752837532223,0.69176246,119050.0,119040.0,0.12290101]
[1752837535324,0.69176246,119050.0,119040.0,0.55145492]
[1752837535626,0.69176246,119050.0,119040.0,0.12290101]
[1752837535822,0.69176246,119050.0,119040.0,0.55145492]
[1752837536223,0.69176246,119050.0,119040.0,0.53390492]
[1752837536625,0.69176246,119050.0,119040.0,0.53394492]
[1752837537029,0.26320855,119050.0,119040.0,0.53394492]
[1752837537328,0.69176246,119050.0,119040.0,0.53394492]
[1752837538529,0.69176246,119050.0,119040.0,0.51106492]
[1752837539328,0.69176246,119050.0,119040.0,0.67898382]
[1752837539529,0.69176246,119050.0,119040.0,0.27356991]
[1752837540128,0.69176246,119050.0,119040.0,0.10565101]
[1752837540323,0.69176246,119050.0,119040.0,0.27356991]
[1752837540930,0.69176246,119050.0,119040.0,0.27338534]
[1752837541126,0.69176246,119050.0,119040.0,0.10546644]
[1752837541429,0.69176246,119050.0,119040.0,0.53402035]
[1752837541821,0.69176246,119050.0,119040.0,0.51088035]
[1752837542726,0.69176246,119050.0,119040.0,0.08232644]
[1752837544334,0.26320855,119050.0,119040.0,0.08232644]
[1752837544633,0.69176246,119050.0,119040.0,0.25024534]
[1752837545428,0.69176246,119050.0,119040.0,0.08232644]
[1752837545933,0.69176246,119050.0,119040.0,0.51088035]
[1752837546234,0.26320855,119050.0,119040.0,0.51088035]
[1752837546534,0.69176246,119050.0,119040.0,0.67879925]
[1752837546729,0.69176246,119050.0,119040.0,0.51088035]
[1752837547334,0.69176246,119050.0,119040.0,0.08232644]
[1752837552236,0.69176246,119050.0,119040.0,0.04915644]
[1752837552939,0.71015712,119050.0,119040.0,0.0324468]
[1752837553533,0.71115712,119050.0,119040.0,0.0274468]
[1752837553942,0.71115712,119050.0,119040.0,0.0234468]
[1752837554239,0.2556389,119040.0,119030.0,0.63871]
[1752837554541,0.68419281,119040.0,119030.0,1.09042078]
[1752837555140,0.2556389,119040.0,119030.0,1.09042078]
[1752837555342,0.68419281,119040.0,119030.0,1.09042078]
[1752837555543,0.68419281,119040.0,119030.0,1.25935378]
[1752837555941,0.68419281,119040.0,119030.0,1.09342078]
[1752837556140,0.68419281,119040.0,119030.0,0.66486687]
[1752837556341,0.68419281,119040.0,119030.0,1.09342078]
[1752837556746,0.68419281,119040.0,119030.0,1.09342804]
[1752837558252,0.2556389,119040.0,119030.0,1.26136104]
[1752837558445,0.68419281,119040.0,119030.0,1.27891104]
[1752837559846,0.68419281,119040.0,119030.0,1.11097804]
[1752837560549,0.68419281,119040.0,119030.0,1.27891104]
[1752837561350,0.68419281,119040.0,119030.0,0.85035713]
[1752837561552,0.68419281,119040.0,119030.0,1.27891104]
[1752837562551,0.68419281,119040.0,119030.0,1.27892485]
[1752837564052,0.68419281,119040.0,119030.0,1.30900358]
[1752837564653,0.68419281,119040.0,119030.0,1.14107058]
[1752837565158,0.68419281,119040.0,119030.0,0.71251667]
[1752837565359,0.68419281,119040.0,119030.0,1.14107058]
[1752837565657,0.2556389,119040.0,119030.0,1.14107058]
[1752837565959,0.68419281,119040.0,119030.0,1.14107058]
[1752837566961,0.68419281,119040.0,119030.0,0.71251667]
[1752837567162,0.68419281,119040.0,119030.0,1.14107058]
[1752837567661,0.68419281,119040.0,119030.0,1.18618867]
[1752837568356,0.68419281,119040.0,119030.0,0.75763476]
[1752837568558,0.68419281,119040.0,119030.0,1.18618867]
[1752837568757,0.68419281,119040.0,119030.0,1.35412177]
[1752837569054,0.68419281,119040.0,119030.0,0.74008476]
[1752837569261,0.68419281,119040.0,119030.0,0.67182667]
[1752837571861,0.68419281,119040.0,119030.0,1.10038058]
[1752837572062,0.2556389,119040.0,119030.0,1.10038058]
[1752837572264,0.68419281,119040.0,119030.0,0.83975977]
[1752837572563,0.68419281,119040.0,119030.0,0.87986977]
[1752837572764,0.68419281,119040.0,119030.0,1.30842368]
[1752837573559,0.2556389,119040.0,119030.0,0.72550368]
[1752837573765,0.2556389,119040.0,119030.0,1.30790368]
[1752837573963,0.2393989,119040.0,119030.0,1.73645759]
[1752837574163,0.1968589,119040.0,119030.0,1.30790368]
[1752837574363,0.1679189,119040.0,119030.0,1.30790368]
[1752837574966,0.1735089,119040.0,119030.0,1.30790368]
[1752837575167,0.1971089,119040.0,119030.0,1.35302177]
[1752837576265,0.1971089,119040.0,119030.0,1.25464701]
[1752837576569,0.1971089,119040.0,119030.0,1.30779265]
[1752837576768,0.2220589,119040.0,119030.0,1.30779265]
[1752837577969,0.2220589,119040.0,119030.0,1.35305051]
[1752837581172,0.2220589,119040.0,119030.0,0.9244966]
[1752837581373,0.2220589,119040.0,119030.0,1.35305051]
[1752837582173,0.2398689,119040.0,119030.0,1.35305051]
[1752837582374,0.2563789,119040.0,119030.0,1.35305051]
[1752837582674,0.68493281,119040.0,119030.0,1.30779265]
[1752837582974,0.2563789,119040.0,119030.0,1.30779265]
[1752837583174,0.68493281,119040.0,119030.0,1.30779265]
[1752837583574,0.2563789,119040.0,119030.0,1.30779265]
[1752837583977,0.68493281,119040.0,119030.0,1.30779265]
[1752837584275,0.68493281,119040.0,119030.0,1.13985955]
[1752837584471,0.68493281,119040.0,119030.0,1.26768265]
[1752837584774,0.68493281,119040.0,119030.0,1.26764265]
[1752837585477,0.68493281,119040.0,119030.0,0.87919874]
[1752837585677,0.68493281,119040.0,119030.0,1.30775265]
[1752837587080,0.68493281,119040.0,119030.0,0.87919874]
[1752837587279,0.68493281,119040.0,119030.0,1.30775265]
[1752837587879,0.68493281,119040.0,119030.0,0.87919874]
[1752837588075,0.68493281,119040.0,119030.0,1.30775265]
[1752837588477,0.2563789,119040.0,119030.0,1.30775265]
[1752837588678,0.68493281,119040.0,119030.0,1.30775265]
[1752837588877,0.2563789,119040.0,119030.0,0.87919874]
[1752837589178,0.2563789,119040.0,119030.0,1.30775265]
[1752837591885,0.2220589,119040.0,119030.0,1.30775265]
[1752837592777,0.2220589,119040.0,119030.0,0.87919874]
[1752837592978,0.2220589,119040.0,119030.0,1.30775265]
[1752837594082,0.2220589,119040.0,119030.0,1.35301051]
[1752837596087,0.2220589,119040.0,119030.0,0.9244566]
[1752837596384,0.2220589,119040.0,119030.0,1.35301051]
[1752837597281,0.2220589,119040.0,119030.0,0.9244566]
[1752837597684,0.2220589,119040.0,119030.0,1.35301051]
[1752837598382,0.2220589,119040.0,119030.0,0.9244566]
[1752837598583,0.2220589,119040.0,119030.0,1.35301051]
[1752837600085,0.2220589,119040.0,119030.0,0.9244566]
[1752837600787,0.2376389,119040.0,119030.0,1.35301051]
[1752837600978,0.2404489,119040.0,119030.0,1.35301051]
[1752837602287,0.2404489,119040.0,119030.0,0.9244566]
[1752837602489,0.2404489,119040.0,119030.0,1.35301051]
[1752837603089,0.2404489,119040.0,119030.0,1.3228386]
[1752837603288,0.2404489,119040.0,119030.0,0.89428469]
[1752837603487,0.2404489,119040.0,119030.0,1.3228386]
[1752837603687,0.2404489,119040.0,119030.0,1.35304033]
[1752837603888,0.2568789,119040.0,119030.0,1.35304033]
[1752837604187,0.2568789,119040.0,119030.0,1.33043376]
[1752837604590,0.2404489,119040.0,119030.0,1.33043376]
[1752837604789,0.2404489,119040.0,119030.0,1.30778247]
[1752837607290,0.2404489,119040.0,119030.0,0.72538247]
[1752837607492,0.2568789,119040.0,119030.0,1.31234247]
[1752837607691,0.68543281,119040.0,119030.0,1.31234247]
[1752837608490,0.2568789,119040.0,119030.0,1.31234247]
[1752837608792,0.68543281,119040.0,119030.0,1.31234247]
[1752837610095,0.68543281,119040.0,119030.0,0.71585546]
[1752837610295,0.68543281,119040.0,119030.0,1.14440937]
[1752837610593,0.2568789,119040.0,119030.0,1.14440937]
[1752837610795,0.68543281,119040.0,119030.0,1.31234237]
[1752837612197,0.68543281,119040.0,119030.0,1.14440937]
[1752837612890,0.68543281,119040.0,119030.0,0.55744937]
[1752837613190,1.11398672,119040.0,119030.0,0.04863244]
[1752837613390,0.1679471,119020.0,119010.0,0.01698775]
[1752837613594,1.11439492,119020.0,119010.0,0.01698775]
[1752837613894,0.68584101,119020.0,119010.0,0.01698775]
[1752837614889,0.2572871,119020.0,119010.0,0.01698775]
[1752837615095,0.63867768,119020.0,119010.0,0.01698775]
[1752837615296,0.63867768,119020.0,119010.0,0.18494895]
[1752837615596,0.8453671,119020.0,119010.0,0.24428895]
[1752837615794,0.2572871,119020.0,119010.0,0.24428895]
[1752837616391,0.2572871,119020.0,119010.0,0.22299895]
[1752837618195,0.2572871,119020.0,119010.0,0.05503775]
[1752837618491,0.63867768,119020.0,119010.0,0.05503775]
[1752837619095,0.63867768,119020.0,119010.0,0.05203775]
[1752837619299,0.63967768,119020.0,119010.0,0.05203775]
[1752837620298,0.2582871,119020.0,119010.0,0.05203775]
[1752837620500,0.63967768,119020.0,119010.0,0.05203775]
[1752837620994,0.2582871,119020.0,119010.0,0.05203775]
[1752837621300,0.63967768,119020.0,119010.0,0.05203775]
[1752837621496,0.64167768,119020.0,119010.0,0.04803775]
[1752837621798,0.2602871,119020.0,119010.0,0.04803775]
[1752837621992,0.71011072,119020.0,119010.0,0.04803775]
[1752837622596,0.71011072,119020.0,119010.0,0.01698775]
[1752837627308,0.2553294,118990.0,118980.0,0.30561563]
[1752837627503,0.2553294,118990.0,118980.0,0.34759317]
[1752837628208,0.2553294,118990.0,118980.0,0.37363657]
[1752837628406,0.2553294,118990.0,118980.0,0.74653375]
[1752837628612,0.2553294,118990.0,118980.0,0.75153375]
[1752837628801,0.2553294,118990.0,118980.0,0.75553375]
[1752837631511,0.2553294,118990.0,118980.0,0.83176082]
[1752837632911,0.2553294,118990.0,118980.0,0.82320032]
[1752837634912,0.2553294,118990.0,118980.0,0.87095736]
[1752837636811,0.2553294,118990.0,118980.0,0.81140726]
[1752837637018,0.68447702,118990.0,118980.0,0.81140726]
[1752837637216,0.68447702,118990.0,118980.0,0.84160899]
[1752837637416,0.68447702,118990.0,118980.0,0.81818899]
[1752837638021,0.68447702,118990.0,118980.0,0.84160899]
[1752837638423,0.68447702,118990.0,118980.0,0.77394242]
[1752837638622,0.68447702,118990.0,118980.0,0.75052242]
[1752837639324,0.68447702,118990.0,118980.0,0.77394242]
[1752837639825,0.68447702,118990.0,118980.0,0.75052242]
[1752837640026,0.68447702,118990.0,118980.0,0.70852372]
[1752837640221,0.68447702,118990.0,118980.0,0.2793761]
[1752837640725,0.68447702,118990.0,118980.0,0.70852372]
[1752837641226,0.68447702,118990.0,118980.0,0.08117927]
[1752837641427,0.68447702,118990.0,118980.0,0.111381]
[1752837642323,0.68447702,118990.0,118980.0,0.079331]
[1752837644725,0.68447702,118990.0,118980.0,0.04912927]
[1752837644927,1.27095702,118990.0,118980.0,0.04912927]
[1752837647530,1.27095702,118990.0,118980.0,0.02624619]
[1752837648032,0.8418094,118990.0,118980.0,0.02624619]
[1752837648232,1.27095702,118990.0,118980.0,0.02624619]
[1752837648632,0.8418094,118990.0,118980.0,0.02624619]
[1752837648832,1.27095702,118990.0,118980.0,0.02624619]
[1752837653629,0.8418094,118990.0,118980.0,0.02624619]
[1752837653835,1.27095702,118990.0,118980.0,0.02624619]
[1752837654237,1.27095702,118990.0,118980.0,0.02324619]
[1752837654439,1.70010464,118990.0,118980.0,0.02324619]
[1752837654636,1.27095702,118990.0,118980.0,0.01824619]
[1752837654940,1.27095702,118990.0,118980.0,0.01924619]
[1752837654941,1.70010464,118990.0,118980.0,0.01924619]
[1752837655136,0.2481935,118980.0,118970.0,0.03020173]
[1752837655439,1.11191874,118980.0,118970.0,0.04694411]
[1752837655639,1.11191874,118980.0,118970.0,0.01674238]
[1752837656641,1.11191874,118980.0,118970.0,0.02074238]
[1752837657038,0.63529917,118980.0,118970.0,0.02074238]
[1752837658039,0.63529917,118980.0,118970.0,0.02374238]
[1752837659439,0.65375796,118980.0,118970.0,0.02374238]
[1752837660142,0.65375796,118980.0,118970.0,0.007]
[1752837665542,0.65475796,118980.0,118970.0,0.004]
[1752837666936,0.2536659,118950.0,118940.0,0.43626371]
[1752837667143,0.2536659,118950.0,118940.0,0.28367138]
[1752837667342,0.63534157,118950.0,118940.0,0.28368228]
[1752837667543,0.63534157,118950.0,118940.0,0.01783055]
[1752837668144,0.63534157,118950.0,118940.0,0.005]
[1752837668538,0.64380448,118950.0,118940.0,0.005]
[1752837668738,0.71255151,118950.0,118940.0,0.009]
[1752837669440,0.33087584,118950.0,118940.0,0.005]
[1752837669636,0.71255151,118950.0,118940.0,0.005]
[1752837669840,1.30343151,118950.0,118940.0,0.008]
[1752837670245,0.92175584,118950.0,118940.0,0.008]
[1752837670547,1.30343151,118950.0,118940.0,0.008]
[1752837671141,0.92175584,118950.0,118940.0,0.008]
[1752837671343,1.30343151,118950.0,118940.0,0.008]
[1752837671940,0.2537082,118920.0,118910.0,0.08005]
[1752837672149,0.2537082,118920.0,118910.0,0.2023924]
[1752837672355,0.2537082,118920.0,118910.0,0.03429]
[1752837672543,0.2537082,118920.0,118910.0,0.2023924]
[1752837672743,0.63538387,118920.0,118910.0,0.03429]
[1752837673045,0.2537224,118910.0,118900.0,0.05754]
[1752837673349,0.2537224,118910.0,118900.0,0.03429]
[1752837673947,0.63539807,118910.0,118900.0,0.03429]
[1752837674147,0.2537224,118910.0,118900.0,0.03429]
[1752837674345,0.2537224,118910.0,118900.0,0.2024065]
[1752837674545,0.2537224,118910.0,118900.0,0.2256565]
[1752837674947,0.2537224,118910.0,118900.0,0.2574665]
[1752837675348,0.2537224,118910.0,118900.0,0.63914217]
[1752837675549,0.2537224,118910.0,118900.0,0.2574665]
[1752837676548,0.2537224,118910.0,118900.0,0.2521665]
[1752837677450,0.2537224,118910.0,118900.0,0.2541665]
[1752837679646,0.2537224,118910.0,118900.0,0.2594665]
[1752837679847,0.1681023,118910.0,118900.0,0.76722347]
[1752837680050,0.3197457,118920.0,118910.0,0.2534523]
[1752837680247,0.3197457,118920.0,118910.0,0.63512797]
[1752837680649,0.3350857,118920.0,118910.0,0.63512797]
[1752837681448,0.2206523,118910.0,118900.0,0.006]
[1752837681651,0.63640797,118910.0,118900.0,0.006]
[1752837682549,0.63640797,118910.0,118900.0,0.004]
[1752837684554,0.46830567,118910.0,118880.0,0.07147915]
[1752837684856,0.2547606,118890.0,118880.0,0.11198915]
[1752837685049,0.2547606,118890.0,118880.0,0.0894]
[1752837685251,0.2547606,118890.0,118880.0,0.084]
[1752837685457,0.63643627,118890.0,118880.0,0.0191]
[1752837685656,0.63643627,118890.0,118880.0,0.01647]
[1752837685858,0.2547748,118880.0,118870.0,0.8960649]
[1752837686559,0.2547748,118880.0,118870.0,1.27774057]
[1752837686858,0.2547748,118880.0,118870.0,0.68126057]
[1752837687158,0.2547748,118880.0,118870.0,0.2575471]
[1752837688058,0.2547748,118880.0,118870.0,0.2685471]
[1752837690861,0.2547748,118880.0,118870.0,0.1004]
[1752837691062,0.2547748,118880.0,118870.0,0.2685589]
[1752837691957,0.2547748,118880.0,118870.0,0.1004]
[1752837692256,0.2547748,118880.0,118870.0,0.12294103]
[1752837692461,0.63645047,118880.0,118870.0,0.09325103]